[Event "Cellavision Cup 2019"]
[Site "Lund"]
[Date "2019.08.02"]
[Round "1.11"]
[White "Smith, Axel"]
[Black "Petersson, Kjell"]
[Result "1-0"]
[ECO "B23"]
[WhiteElo "2469"]
[BlackElo "1931"]
[Annotator "ChessBase"]
[PlyCount "127"]
[EventDate "2019.08.02"]
[EventType "swiss"]
[EventCountry "SWE"]
[SourceTitle "playchess.com"]
[Source "ChessBase"]
[SourceQuality "1"]
[TimeControl "900+5"]

1. e4 {[%emt 0:00:00]} c5 {[%emt 0:00:00]} 2. Nc3 {[%emt 0:00:02]} d6 {[%emt 0:00:00]} 3. f4 {[%emt 0:01:01]} Nc6 {[%emt 0:00:18]} 4. Nf3 {[%emt 0:00:04]} g6 {[%emt 0:00:01]} 5. Bb5 {[%emt 0:00:02]} Bd7 {[%emt 0:00:23]} 6. O-O {[%emt 0:01:14]} e6 {[%emt 0:00:12]} 7. Bxc6 {[%emt 0:00:52]} Bxc6 {[%emt 0:00:01]} 8. d4 {[%emt 0:00:02]} cxd4 {[%emt 0:00:08]} 9. Qxd4 {[%emt 0:00:03]} Qb6 {[%emt 0:03:01]} 10. Qxb6 {[%emt 0:00:14]} axb6 {[%emt 0:00:01]} 11. Be3 {[%emt 0:00:22]} Bg7 {[%emt 0:00:55]} 12. Nd4 {[%emt 0:00:37]} Rc8 {[%emt 0:02:43]} 13. Ndb5 {[%emt 0:01:51]} Ke7 {[%emt 0:00:54]} 14. Rad1 {[%emt 0:01:50]} Bxb5 {[%emt 0:01:46]} 15. Nxb5 {[%emt 0:00:01]} Rc6 {[%emt 0:00:06]} 16. c3 {[%emt 0:01:51]} Nf6 {[%emt 0:00:07]} 17. Bd4 {[%emt 0:00:06]} Ra8 {[%emt 0:00:14]} 18. a3 {[%emt 0:01:27]} Ne8 {[%emt 0:00:23]} 19. Bxg7 {[%emt 0:00:05]} Nxg7 {[%emt 0:00:00]} 20. Rd4 {[%emt 0:00:23]} Rd8 {[%emt 0:00:29]} 21. Rfd1 {[%emt 0:00:28]} Ne8 {[%emt 0:00:02]} 22. Rb4 {[%emt 0:00:15]} d5 {[%emt 0:01:53]} 23. Nd4 {[%emt 0:00:56]} Rc7 {[%emt 0:00:29]} 24. e5 {[%emt 0:00:26]} Ng7 {[%emt 0:00:33]} 25. Rxb6 {[%emt 0:00:02]} Nf5 {[%emt 0:00:03]} 26. Nxf5+ {[%emt 0:00:06]} gxf5 {[%emt 0:00:03]} 27. Rd4 {[%emt 0:00:04]} f6 {[%emt 0:00:20]} 28. exf6+ {[%emt 0:00:16]} Kxf6 {[%emt 0:00:01]} 29. Kf2 {[%emt 0:00:10]} Rdd7 {[%emt 0:00:15]} 30. g3 {[%emt 0:00:04]} h5 {[%emt 0:00:03]} 31. a4 {[%emt 0:00:16]} h4 {[%emt 0:00:11]} 32. gxh4 {[%emt 0:00:13]} Rh7 {[%emt 0:00:01]} 33. Rxd5 {[%emt 0:00:10]} Rxh4 {[%emt 0:00:02]} 34. Kg3 {[%emt 0:01:16]} Rg4+ {[%emt 0:00:01]} 35. Kf3 {[%emt 0:00:01]} Rh7 {[%emt 0:00:02]} 36. Rdd6 {[%emt 0:00:11]} Rh3+ {[%emt 0:00:02]} 37. Ke2 {[%emt 0:00:00]} Rxh2+ {[%emt 0:00:01]} 38. Kd3 {[%emt 0:00:01]} Rxf4 {[%emt 0:00:31]} 39. Rxe6+ {[%emt 0:00:01]} Kg5 {[%emt 0:00:03]} 40. Rg6+ {[%emt 0:00:01]} Kh4 {[%emt 0:00:02]} 41. Rxb7 {[%emt 0:00:06]} Rg4 {[%emt 0:00:11]} 42. Rh6+ {[%emt 0:00:24]} Kg3 {[%emt 0:00:03]} 43. Rxh2 {[%emt 0:00:01]} Kxh2 {[%emt 0:00:01]} 44. Rf7 {[%emt 0:00:04]} f4 {[%emt 0:00:13]} 45. a5 {[%emt 0:00:03]} Kg3 {[%emt 0:00:23]} 46. a6 {[%emt 0:00:33]} f3 {[%emt 0:00:01]} 47. Ke3 {[%emt 0:00:10]} Ra4 {[%emt 0:00:20]} 48. Rxf3+ {[%emt 0:00:03]} Kg4 {[%emt 0:00:02]} 49. Rf6 {[%emt 0:00:03]} Kg5 {[%emt 0:00:01]} 50. Rd6 {[%emt 0:00:02]} Kf5 {[%emt 0:00:02]} 51. b4 {[%emt 0:00:12]} Ke5 {[%emt 0:00:01]} 52. Rh6 {[%emt 0:00:06]} Kd5 {[%emt 0:00:02]} 53. Kd3 {[%emt 0:00:04]} Ra3 {[%emt 0:00:04]} 54. Rh5+ {[%emt 0:00:06]} Kc6 {[%emt 0:00:01]} 55. Kc4 {[%emt 0:00:03]} Kb6 {[%emt 0:00:06]} 56. Rh6+ {[%emt 0:00:02]} Ka7 {[%emt 0:00:01]} 57. Rg6 {[%emt 0:00:13]} Ra1 {[%emt 0:00:09]} 58. Kb5 {[%emt 0:00:02]} Rf1 {[%emt 0:00:07]} 59. Rg7+ {[%emt 0:00:03]} Ka8 {[%emt 0:00:01]} 60. c4 {[%emt 0:00:09]} Rf5+ {[%emt 0:00:01]} 61. c5 {[%emt 0:00:02]} Re5 {[%emt 0:00:11]} 62. Kb6 {[%emt 0:00:04]} Re6+ {[%emt 0:00:05]} 63. c6 {[%emt 0:00:01]} Rf6 {[%emt 0:00:11]} 64. Rg8+ 1-0

[Event "Cellavision Cup 2019"]
[Site "Lund"]
[Date "2019.08.02"]
[Round "1.12"]
[White "Forsberg, Andre"]
[Black "Hansen, Torbjorn Ringdal"]
[Result "0-1"]
[ECO "B12"]
[WhiteElo "1982"]
[BlackElo "2432"]
[Annotator "NA"]
[PlyCount "56"]
[EventDate "2019.08.02"]
[EventType "swiss"]
[EventCountry "SWE"]
[SourceTitle "playchess.com"]
[Source "ChessBase"]
[SourceQuality "1"]
[TimeControl "900+5"]

1. e4 {[%emt 0:00:00]} c6 {[%emt 0:00:00]} 2. d4 {[%emt 0:00:05]} d5 {[%emt 0:00:00]} 3. f3 {[%emt 0:00:06]} e6 {[%emt 0:00:00]} 4. Nc3 {[%emt 0:00:12]} Bb4 {[%emt 0:00:04]} 5. Nge2 {[%emt 0:01:23]} Nf6 {[%emt 0:00:27]} 6. e5 {[%emt 0:00:04]} Nfd7 {[%emt 0:00:04]} 7. a3 {[%emt 0:00:05]} Be7 {[%emt 0:00:15]} 8. f4 {[%emt 0:01:16]} c5 {[%emt 0:00:03]} 9. Be3 {[%emt 0:00:23]} Nc6 {[%emt 0:00:03]} 10. dxc5 {[%emt 0:00:33]} Bxc5 {[%emt 0:00:38]} 11. Bxc5 {[%emt 0:00:38]} Nxc5 {[%emt 0:00:03]} 12. Nd4 {[%emt 0:01:02]} O-O {[%emt 0:00:24]} 13. b4 {[%emt 0:01:23]} Nd7 {[%emt 0:00:13]} 14. Ncb5 {[%emt 0:00:43]} a6 {[%emt 0:00:41]} 15. Nd6 {[%emt 0:00:11]} Ndxe5 {[%emt 0:00:50]} 16. Nxc8 {[%emt 0:02:02]} Rxc8 {[%emt 0:00:24]} 17. Nxc6 {[%emt 0:00:40]} Nxc6 {[%emt 0:00:09]} 18. Bd3 {[%emt 0:00:42]} Qb6 {[%emt 0:00:10]} 19. Qd2 {[%emt 0:01:53]} e5 {[%emt 0:00:17]} 20. fxe5 {[%emt 0:00:31]} Nxe5 {[%emt 0:00:11]} 21. O-O-O {[%emt 0:00:31]} Qf6 {[%emt 0:01:54]} 22. Rhf1 {[%emt 0:00:49]} Nxd3+ {[%emt 0:00:45]} 23. Qxd3 {[%emt 0:00:02]} Qa1+ {[%emt 0:00:33]} 24. Kd2 {[%emt 0:00:01]} Qb2 {[%emt 0:00:18]} 25. Rf4 {[%emt 0:00:18]} Rfe8 {[%emt 0:00:53]} 26. Rc1 {[%emt 0:00:46]} Rc4 {[%emt 0:01:15]} 27. Rxc4 {[%emt 0:00:43]} dxc4 {[%emt 0:00:03]} 28. Qd7 {[%emt 0:00:05]} Qe5 {[%emt 0:00:36]} 0-1

[Event "Cellavision Cup 2019"]
[Site "Lund"]
[Date "2019.08.02"]
[Round "1.13"]
[White "Solozhenkin, Evgeniy"]
[Black "Helin, Mikael"]
[Result "0-1"]
[ECO "B07"]
[WhiteElo "2423"]
[BlackElo "1923"]
[Annotator "NA"]
[PlyCount "56"]
[EventDate "2019.08.02"]
[EventType "swiss"]
[EventCountry "SWE"]
[SourceTitle "playchess.com"]
[Source "ChessBase"]
[SourceQuality "1"]
[TimeControl "900+5"]

1. d4 {[%emt 0:00:00]} d6 {[%emt 0:00:03]} 2. e4 {[%emt 0:00:02]} Nf6 {[%emt 0:00:03]} 3. Nc3 {[%emt 0:00:01]} Nbd7 {[%emt 0:00:04]} 4. Nf3 {[%emt 0:00:03]} e5 {[%emt 0:00:03]} 5. Bc4 {[%emt 0:00:02]} Be7 {[%emt 0:00:03]} 6. a4 {[%emt 0:00:02]} a5 {[%emt 0:00:07]} 7. Bxf7+ {[%emt 0:00:57]} Kxf7 {[%emt 0:00:03]} 8. Ng5+ {[%emt 0:00:01]} Kg8 {[%emt 0:00:06]} 9. Ne6 {[%emt 0:00:02]} Qe8 {[%emt 0:00:01]} 10. Nxc7 {[%emt 0:00:01]} Qg6 {[%emt 0:00:04]} 11. Nxa8 {[%emt 0:00:09]} Qxg2 {[%emt 0:00:12]} 12. Rf1 {[%emt 0:00:16]} exd4 {[%emt 0:00:03]} 13. Qxd4 {[%emt 0:00:13]} Ne5 {[%emt 0:00:07]} 14. Qb6 {[%emt 0:04:10]} Nf3+ {[%emt 0:01:54]} 15. Ke2 {[%emt 0:00:02]} Bg4 {[%emt 0:00:01]} 16. Be3 {[%emt 0:02:05]} Nxh2+ {[%emt 0:08:05]} 17. Kd3 {[%emt 0:00:03]} Nxf1 {[%emt 0:00:10]} 18. Qxb7 {[%emt 0:00:53]} Kf7 {[%emt 0:00:17]} 19. Nc7 {[%emt 0:01:40]} Nxe3 {[%emt 0:00:28]} 20. fxe3 {[%emt 0:00:02]} Nd7 {[%emt 0:01:16]} 21. Kc4 {[%emt 0:02:00]} Be2+ {[%emt 0:00:28]} 22. Kd4 {[%emt 0:00:23]} Bf6+ {[%emt 0:01:06]} 23. Kd5 {[%emt 0:00:01]} Qg5+ {[%emt 0:00:07]} 24. Kc6 {[%emt 0:00:28]} Nb8+ {[%emt 0:00:32]} 25. Qxb8 {[%emt 0:01:01]} Rxb8 {[%emt 0:00:03]} 26. N7d5 {[%emt 0:00:03]} Rc8+ {[%emt 0:00:26]} 27. Kb7 {[%emt 0:00:00]} Qg4 {[%emt 0:00:10]} 28. Nxe2 {[%emt 0:00:19]} Qd7+ {[%emt 0:00:13]} 0-1

[Event "Cellavision Cup 2019"]
[Site "Lund"]
[Date "2019.08.02"]
[Round "1.14"]
[White "Sjodahl, Sten"]
[Black "Seo, Jung Min"]
[Result "0-1"]
[ECO "B90"]
[WhiteElo "1923"]
[BlackElo "2399"]
[Annotator "NA"]
[PlyCount "104"]
[EventDate "2019.08.02"]
[EventType "swiss"]
[EventCountry "SWE"]
[SourceTitle "playchess.com"]
[Source "ChessBase"]
[SourceQuality "1"]
[TimeControl "900+5"]

1. e4 {[%emt 0:00:00]} c5 {[%emt 0:00:00]} 2. Nf3 {[%emt 0:00:00]} d6 {[%emt 0:00:00]} 3. d4 {[%emt 0:00:03]} cxd4 {[%emt 0:00:00]} 4. Nxd4 {[%emt 0:00:01]} Nf6 {[%emt 0:00:00]} 5. Nc3 {[%emt 0:00:07]} a6 {[%emt 0:00:01]} 6. f3 {[%emt 0:00:10]} e6 {[%emt 0:00:08]} 7. Be3 {[%emt 0:00:02]} Be7 {[%emt 0:00:01]} 8. Qd2 {[%emt 0:00:06]} b5 {[%emt 0:00:16]} 9. g4 {[%emt 0:00:18]} Bb7 {[%emt 0:00:13]} 10. O-O-O {[%emt 0:00:04]} Nc6 {[%emt 0:00:59]} 11. g5 {[%emt 0:01:01]} Nd7 {[%emt 0:00:02]} 12. h4 {[%emt 0:00:13]} Rc8 {[%emt 0:00:13]} 13. Kb1 {[%emt 0:00:02]} Nb6 {[%emt 0:01:47]} 14. Bh3 {[%emt 0:00:35]} Nc4 {[%emt 0:00:13]} 15. Qf2 {[%emt 0:00:03]} Nxe3 {[%emt 0:00:12]} 16. Qxe3 {[%emt 0:00:02]} O-O {[%emt 0:00:37]} 17. Nxe6 {[%emt 0:01:02]} fxe6 {[%emt 0:00:00]} 18. Bxe6+ {[%emt 0:00:02]} Kh8 {[%emt 0:00:01]} 19. Bxc8 Qxc8 {[%emt 0:00:07]} 20. Nd5 {[%emt 0:00:07]} Bd8 {[%emt 0:00:02]} 21. h5 {[%emt 0:00:19]} Ne5 {[%emt 0:00:25]} 22. h6 {[%emt 0:00:25]} Rxf3 {[%emt 0:00:35]} 23. hxg7+ Kxg7 {[%emt 0:00:01]} 24. Qd4 {[%emt 0:00:42]} Qc5 {[%emt 0:00:55]} 25. Qd2 {[%emt 0:02:25]} Rf2 {[%emt 0:00:15]} 26. Qc3 {[%emt 0:00:18]} Qxc3 {[%emt 0:00:05]} 27. Nxc3 {[%emt 0:00:02]} Nf7 {[%emt 0:00:13]} 28. Rhe1 {[%emt 0:00:23]} Bxg5 {[%emt 0:00:06]} 29. e5 {[%emt 0:00:13]} dxe5 {[%emt 0:00:31]} 30. Rd7 {[%emt 0:00:24]} Bc8 {[%emt 0:00:13]} 31. Rc7 {[%emt 0:00:42]} Bf5 {[%emt 0:00:10]} 32. Nd5 {[%emt 0:01:49]} Rd2 {[%emt 0:01:07]} 33. Nb4 {[%emt 0:01:21]} a5 {[%emt 0:00:27]} 34. Nd3 {[%emt 0:01:01]} Bxd3 {[%emt 0:00:41]} 35. cxd3 {[%emt 0:00:02]} Rxd3 {[%emt 0:00:04]} 36. Rc5 {[%emt 0:00:28]} b4 {[%emt 0:00:52]} 37. Rxa5 {[%emt 0:00:17]} h5 {[%emt 0:00:17]} 38. Ra7 {[%emt 0:00:01]} Kf6 {[%emt 0:00:28]} 39. Kc2 {[%emt 0:00:22]} Rf3 {[%emt 0:00:16]} 40. Re4 {[%emt 0:00:43]} Rf4 {[%emt 0:00:08]} 41. Re2 {[%emt 0:00:34]} h4 {[%emt 0:00:11]} 42. Ra6+ {[%emt 0:00:03]} Kf5 {[%emt 0:00:06]} 43. Rb6 {[%emt 0:00:05]} h3 {[%emt 0:00:11]} 44. a4 {[%emt 0:00:00]} bxa3 {[%emt 0:00:07]} 45. bxa3 {[%emt 0:00:01]} Nh6 {[%emt 0:00:56]} 46. Rb4 {[%emt 0:00:05]} Rxb4 {[%emt 0:00:10]} 47. axb4 {[%emt 0:00:01]} Bf4 {[%emt 0:00:02]} 48. b5 {[%emt 0:00:09]} h2 {[%emt 0:00:04]} 49. Re1 {[%emt 0:00:01]} Ng4 {[%emt 0:00:04]} 50. b6 Nf2 {[%emt 0:00:13]} 51. b7 {[%emt 0:00:08]} e4 {[%emt 0:00:02]} 52. Rb1 {[%emt 0:00:08]} h1=Q {[%emt 0:00:08]} 0-1

[Event "Cellavision Cup 2019"]
[Site "Lund"]
[Date "2019.08.02"]
[Round "1.15"]
[White "Kristiansen, Jens"]
[Black "Andersson, Kjell-Ake"]
[Result "1-0"]
[ECO "A46"]
[WhiteElo "2400"]
[BlackElo "1859"]
[Annotator "NA"]
[PlyCount "59"]
[EventDate "2019.08.02"]
[EventType "swiss"]
[EventCountry "SWE"]
[SourceTitle "playchess.com"]
[Source "ChessBase"]
[SourceQuality "1"]
[TimeControl "900+5"]

1. Nf3 {[%emt 0:00:00]} Nf6 {[%emt 0:00:13]} 2. d4 {[%emt 0:00:00]} e6 {[%emt 0:00:18]} 3. e3 {[%emt 0:00:04]} Be7 {[%emt 0:00:36]} 4. Bd3 {[%emt 0:00:09]} b6 {[%emt 0:01:02]} 5. O-O {[%emt 0:00:23]} Bb7 {[%emt 0:00:03]} 6. c4 {[%emt 0:00:19]} O-O {[%emt 0:00:30]} 7. Nc3 {[%emt 0:00:05]} c5 {[%emt 0:00:15]} 8. d5 {[%emt 0:00:17]} exd5 {[%emt 0:01:53]} 9. cxd5 {[%emt 0:00:03]} d6 {[%emt 0:00:07]} 10. e4 {[%emt 0:00:11]} Nbd7 {[%emt 0:00:04]} 11. h3 {[%emt 0:00:19]} a6 {[%emt 0:00:14]} 12. a4 {[%emt 0:00:08]} Re8 {[%emt 0:01:08]} 13. Bf4 {[%emt 0:00:14]} Bf8 {[%emt 0:00:19]} 14. Re1 {[%emt 0:01:23]} Qc7 {[%emt 0:00:36]} 15. Nd2 {[%emt 0:01:25]} Ne5 {[%emt 0:00:41]} 16. Bf1 {[%emt 0:00:08]} Nfd7 {[%emt 0:01:07]} 17. Bg3 {[%emt 0:00:35]} Ng6 {[%emt 0:01:25]} 18. Nc4 {[%emt 0:00:42]} Rad8 {[%emt 0:01:25]} 19. h4 {[%emt 0:00:53]} Nge5 {[%emt 0:00:29]} 20. Ne3 {[%emt 0:00:10]} Nf6 {[%emt 0:00:12]} 21. h5 {[%emt 0:01:27]} Bc8 {[%emt 0:00:30]} 22. Bh4 {[%emt 0:00:54]} Be7 {[%emt 0:00:44]} 23. Be2 {[%emt 0:01:21]} Ned7 {[%emt 0:01:21]} 24. Bg3 {[%emt 0:00:31]} Bf8 {[%emt 0:00:11]} 25. Bd3 {[%emt 0:00:46]} Ne5 {[%emt 0:00:33]} 26. Bc2 {[%emt 0:00:33]} Nfg4 {[%emt 0:00:28]} 27. Nf5 {[%emt 0:00:54]} Bxf5 {[%emt 0:00:21]} 28. exf5 {[%emt 0:00:02]} Nf6 {[%emt 0:00:06]} 29. Bh4 {[%emt 0:00:11]} Be7 {[%emt 0:00:09]} 30. h6 1-0

[Event "Cellavision Cup 2019"]
[Site "Lund"]
[Date "2019.08.02"]
[Round "1.16"]
[White "Kittilsen, Sigurd"]
[Black "Jepson, Christian"]
[Result "0-1"]
[ECO "B07"]
[WhiteElo "1894"]
[BlackElo "2391"]
[Annotator "NA"]
[PlyCount "95"]
[EventDate "2019.08.02"]
[EventType "swiss"]
[EventCountry "SWE"]
[SourceTitle "playchess.com"]
[Source "ChessBase"]
[SourceQuality "1"]
[TimeControl "900+5"]

1. e4 {[%emt 0:00:00]} d6 {[%emt 0:00:00]} 2. d4 {[%emt 0:00:02]} Nf6 {[%emt 0:00:05]} 3. Nc3 {[%emt 0:00:12]} g6 {[%emt 0:00:02]} 4. Bg5 {[%emt 0:01:18]} c6 {[%emt 0:00:10]} 5. Qd2 {[%emt 0:00:43]} Nbd7 {[%emt 0:00:16]} 6. Bh6 {[%emt 0:01:06]} Bxh6 {[%emt 0:03:06]} 7. Qxh6 {[%emt 0:00:01]} Qa5 {[%emt 0:01:17]} 8. Bd3 {[%emt 0:02:36]} c5 {[%emt 0:03:03]} 9. Qd2 {[%emt 0:03:08]} cxd4 {[%emt 0:00:52]} 10. Nb5 {[%emt 0:00:08]} Qxd2+ {[%emt 0:00:16]} 11. Kxd2 {[%emt 0:00:01]} O-O {[%emt 0:00:03]} 12. Nf3 {[%emt 0:01:05]} Nc5 {[%emt 0:00:44]} 13. Rhe1 {[%emt 0:02:16]} a6 {[%emt 0:00:42]} 14. Nbxd4 {[%emt 0:00:30]} e5 {[%emt 0:01:06]} 15. Ne2 {[%emt 0:00:01]} Nfxe4+ {[%emt 0:00:13]} 16. Bxe4 {[%emt 0:00:42]} Nxe4+ {[%emt 0:00:02]} 17. Ke3 {[%emt 0:00:58]} Nf6 {[%emt 0:00:23]} 18. h3 {[%emt 0:00:38]} Nd5+ {[%emt 0:00:40]} 19. Kd2 {[%emt 0:00:09]} Bd7 {[%emt 0:00:11]} 20. c4 {[%emt 0:00:13]} Nf6 {[%emt 0:00:22]} 21. Nc3 {[%emt 0:00:13]} Rfc8 {[%emt 0:00:12]} 22. b3 {[%emt 0:00:16]} Bc6 {[%emt 0:00:10]} 23. Rad1 {[%emt 0:00:10]} b5 {[%emt 0:00:02]} 24. cxb5 {[%emt 0:00:02]} axb5 {[%emt 0:00:02]} 25. Ra1 {[%emt 0:00:27]} b4 {[%emt 0:00:08]} 26. Nd1 {[%emt 0:00:05]} Ra6 {[%emt 0:00:34]} 27. Nb2 {[%emt 0:00:07]} Rca8 {[%emt 0:00:05]} 28. a4 {[%emt 0:00:05]} bxa3 {[%emt 0:00:03]} 29. Nc4 {[%emt 0:00:01]} Ne4+ {[%emt 0:00:46]} 30. Ke2 {[%emt 0:00:09]} Nc5 {[%emt 0:00:05]} 31. Nfd2 {[%emt 0:00:04]} Bb5 {[%emt 0:00:23]} 32. f3 {[%emt 0:00:05]} d5 {[%emt 0:00:01]} 33. b4 {[%emt 0:00:04]} Ne6 {[%emt 0:00:05]} 34. Kf2 {[%emt 0:00:07]} Bxc4 {[%emt 0:00:13]} 35. Rxe5 {[%emt 0:00:02]} a2 {[%emt 0:00:04]} 36. Ke3 {[%emt 0:00:06]} Kg7 {[%emt 0:00:04]} 37. Nxc4 {[%emt 0:00:08]} dxc4 {[%emt 0:00:02]} 38. Rb5 {[%emt 0:00:06]} Ra3+ {[%emt 0:00:03]} 39. Kd2 {[%emt 0:00:04]} Rb3 {[%emt 0:00:02]} 40. Ra5 {[%emt 0:00:04]} Rxa5 {[%emt 0:00:02]} 41. bxa5 {[%emt 0:00:01]} Ra3 {[%emt 0:00:03]} 42. Kc2 {[%emt 0:00:10]} c3 {[%emt 0:00:01]} 43. g3 {[%emt 0:00:04]} Nd4+ {[%emt 0:00:01]} 44. Kd3 {[%emt 0:00:01]} c2+ {[%emt 0:00:06]} 45. Kd2 {[%emt 0:00:10]} Nb3+ {[%emt 0:00:01]} 46. Kxc2 {[%emt 0:00:03]} Nxa1+ 47. Kb2 Rxa5 {[%emt 0:00:05]} 48. Kxa1 {[%emt 0:00:02]} 0-1

[Event "Cellavision Cup 2019"]
[Site "Lund"]
[Date "2019.08.02"]
[Round "2.2"]
[White "Kryakvin, Dmitry"]
[Black "Berggren Torell, Harald"]
[Result "1-0"]
[ECO "A41"]
[WhiteElo "2586"]
[BlackElo "2137"]
[Annotator "ChessBase"]
[PlyCount "39"]
[EventDate "2019.08.02"]
[EventType "swiss"]
[EventCountry "SWE"]
[SourceTitle "playchess.com"]
[Source "ChessBase"]
[SourceQuality "1"]
[TimeControl "900+5"]

1. d4 {[%emt 0:00:00]} d6 {[%emt 0:00:00]} 2. Nf3 {[%emt 0:00:04]} g6 {[%emt 0:00:00]} 3. g3 {[%emt 0:00:10]} Bg7 {[%emt 0:00:00]} 4. Bg2 {[%emt 0:00:01]} a6 {[%emt 0:00:32]} 5. O-O {[%emt 0:00:07]} Bd7 {[%emt 0:00:01]} 6. Nc3 {[%emt 0:00:36]} Qc8 {[%emt 0:00:11]} 7. Re1 {[%emt 0:00:16]} Bh3 {[%emt 0:02:49]} 8. Bh1 {[%emt 0:00:05]} h5 {[%emt 0:00:18]} 9. e4 {[%emt 0:00:58]} Bg4 {[%emt 0:00:49]} 10. e5 {[%emt 0:00:54]} dxe5 {[%emt 0:00:43]} 11. dxe5 {[%emt 0:00:20]} Nc6 {[%emt 0:01:09]} 12. Bf4 {[%emt 0:00:04]} Bh6 {[%emt 0:01:11]} 13. Qd2 {[%emt 0:00:34]} Qf5 {[%emt 0:01:01]} 14. Rad1 {[%emt 0:01:50]} g5 {[%emt 0:02:03]} 15. Nxg5 {[%emt 0:03:25]} Bxd1 {[%emt 0:01:07]} 16. Be4 {[%emt 0:01:50]} Qd7 {[%emt 0:01:12]} 17. Qxd7+ {[%emt 0:00:21]} Kxd7 {[%emt 0:00:02]} 18. Nxf7 {[%emt 0:00:11]} Bxf4 {[%emt 0:00:21]} 19. Rxd1+ {[%emt 0:00:09]} Kc8 {[%emt 0:00:18]} 20. gxf4 {[%emt 0:00:33]} 1-0

[Event "Cellavision Cup 2019"]
[Site "Lund"]
[Date "2019.08.02"]
[Round "2.3"]
[White "Wahlund, Max"]
[Black "Kulaots, Kaido"]
[Result "0-1"]
[ECO "A40"]
[WhiteElo "2100"]
[BlackElo "2560"]
[Annotator "ChessBase"]
[PlyCount "40"]
[EventDate "2019.08.02"]
[EventType "swiss"]
[EventCountry "SWE"]
[SourceTitle "playchess.com"]
[Source "ChessBase"]
[SourceQuality "1"]
[TimeControl "900+5"]

1. d4 {[%emt 0:00:00]} Nf6 {[%emt 0:00:00]} 2. c4 {[%emt 0:00:00]} e6 {[%emt 0:00:02]} 3. g3 {[%emt 0:00:01]} Bb4+ {[%emt 0:00:17]} 4. Bd2 {[%emt 0:00:07]} Be7 {[%emt 0:00:12]} 5. Bg2 {[%emt 0:00:04]} d5 {[%emt 0:00:01]} 6. Nf3 {[%emt 0:00:03]} O-O {[%emt 0:00:04]} 7. O-O {[%emt 0:00:02]} c6 {[%emt 0:00:02]} 8. Qc2 {[%emt 0:00:12]} Nbd7 {[%emt 0:00:26]} 9. Bf4 {[%emt 0:00:10]} h6 {[%emt 0:01:13]} 10. Rd1 {[%emt 0:00:29]} a5 {[%emt 0:01:18]} 11. b3 {[%emt 0:00:23]} a4 {[%emt 0:02:36]} 12. Nc3 {[%emt 0:00:17]} a3 {[%emt 0:00:08]} 13. e4 {[%emt 0:00:12]} Bb4 {[%emt 0:00:28]} 14. exd5 {[%emt 0:00:53]} exd5 {[%emt 0:00:57]} 15. Ne5 {[%emt 0:00:48]} Nb6 {[%emt 0:01:12]} 16. Rac1 {[%emt 0:02:17]} Be6 {[%emt 0:00:19]} 17. c5 {[%emt 0:01:41]} Nbd7 {[%emt 0:00:06]} 18. Ne2 {[%emt 0:00:49]} Re8 {[%emt 0:00:34]} 19. Nxd7 {[%emt 0:00:50]} Qxd7 {[%emt 0:00:08]} 20. Be5 {[%emt 0:00:14]} Bf5 {[%emt 0:00:10]} 0-1

[Event "Cellavision Cup 2019"]
[Site "Lund"]
[Date "2019.08.02"]
[Round "2.4"]
[White "Burg, Twan"]
[Black "Unmack, Christian"]
[Result "1-0"]
[ECO "C65"]
[WhiteElo "2526"]
[BlackElo "2133"]
[Annotator "ChessBase"]
[PlyCount "51"]
[EventDate "2019.08.02"]
[EventType "swiss"]
[EventCountry "SWE"]
[SourceTitle "playchess.com"]
[Source "ChessBase"]
[SourceQuality "1"]
[TimeControl "900+5"]

1. e4 {[%emt 0:00:00]} e5 {[%emt 0:00:00]} 2. Nf3 {[%emt 0:00:00]} Nc6 {[%emt 0:00:00]} 3. Bb5 {[%emt 0:00:08]} Nf6 {[%emt 0:00:02]} 4. d3 {[%emt 0:00:32]} Bc5 {[%emt 0:00:03]} 5. c3 {[%emt 0:00:04]} d6 {[%emt 0:00:18]} 6. h3 {[%emt 0:00:28]} h6 {[%emt 0:00:15]} 7. Nbd2 {[%emt 0:00:04]} Be6 {[%emt 0:01:16]} 8. d4 {[%emt 0:00:16]} exd4 {[%emt 0:00:36]} 9. cxd4 {[%emt 0:00:01]} Bb4 {[%emt 0:00:26]} 10. d5 {[%emt 0:00:05]} Nxd5 {[%emt 0:01:00]} 11. exd5 {[%emt 0:00:06]} Bxd5 {[%emt 0:00:01]} 12. O-O {[%emt 0:00:23]} Qf6 {[%emt 0:00:41]} 13. Nb3 {[%emt 0:01:45]} Bxf3 {[%emt 0:03:46]} 14. Qxf3 {[%emt 0:00:08]} Qxf3 {[%emt 0:00:02]} 15. gxf3 {[%emt 0:00:02]} d5 {[%emt 0:00:13]} 16. Be3 {[%emt 0:01:52]} a6 {[%emt 0:00:31]} 17. Bxc6+ {[%emt 0:00:11]} bxc6 {[%emt 0:00:01]} 18. Rac1 {[%emt 0:00:22]} Kd7 {[%emt 0:00:07]} 19. a3 {[%emt 0:00:54]} Bd6 {[%emt 0:00:12]} 20. Na5 {[%emt 0:00:39]} Be5 {[%emt 0:01:12]} 21. b4 {[%emt 0:00:10]} Bb2 {[%emt 0:00:04]} 22. Rb1 {[%emt 0:00:02]} Bc3 {[%emt 0:00:20]} 23. Rfc1 {[%emt 0:00:06]} d4 {[%emt 0:00:15]} 24. Bxd4 {[%emt 0:00:02]} Bxd4 {[%emt 0:00:42]} 25. Rd1 {[%emt 0:00:02]} c5 {[%emt 0:00:35]} 26. bxc5 {[%emt 0:00:02]} 1-0

[Event "Cellavision Cup 2019"]
[Site "Lund"]
[Date "2019.08.02"]
[Round "2.5"]
[White "Malmqvist, Glenn"]
[Black "Marin, Mihail"]
[Result "0-1"]
[ECO "A10"]
[WhiteElo "2121"]
[BlackElo "2525"]
[Annotator "ChessBase"]
[PlyCount "69"]
[EventDate "2019.08.02"]
[EventType "swiss"]
[EventCountry "SWE"]
[SourceTitle "playchess.com"]
[Source "ChessBase"]
[SourceQuality "1"]
[TimeControl "900+5"]

1. c4 {[%emt 0:00:00]} f5 {[%emt 0:00:00]} 2. Nc3 {[%emt 0:00:03]} Nf6 {[%emt 0:00:00]} 3. g3 {[%emt 0:00:18]} g6 {[%emt 0:00:02]} 4. Bg2 {[%emt 0:00:01]} Bg7 {[%emt 0:00:02]} 5. d3 {[%emt 0:00:08]} O-O {[%emt 0:00:04]} 6. e4 {[%emt 0:00:04]} d6 {[%emt 0:00:01]} 7. Nge2 {[%emt 0:00:05]} e5 {[%emt 0:00:03]} 8. Bg5 {[%emt 0:00:04]} h6 {[%emt 0:00:08]} 9. Bxf6 {[%emt 0:00:02]} Qxf6 {[%emt 0:00:03]} 10. Nd5 {[%emt 0:00:19]} Qf7 {[%emt 0:00:04]} 11. O-O {[%emt 0:00:56]} c6 {[%emt 0:00:08]} 12. Ndc3 {[%emt 0:00:01]} f4 {[%emt 0:00:07]} 13. f3 {[%emt 0:00:02]} Na6 {[%emt 0:00:18]} 14. d4 {[%emt 0:00:04]} exd4 {[%emt 0:00:22]} 15. Nxd4 {[%emt 0:00:03]} Qxc4 {[%emt 0:00:03]} 16. Nde2 {[%emt 0:00:18]} Qc5+ {[%emt 0:00:22]} 17. Kh1 {[%emt 0:00:05]} g5 {[%emt 0:00:03]} 18. gxf4 {[%emt 0:00:33]} gxf4 {[%emt 0:00:02]} 19. Qd2 {[%emt 0:00:06]} Be5 {[%emt 0:00:26]} 20. Rg1 {[%emt 0:00:42]} Kh7 {[%emt 0:00:05]} 21. Nc1 {[%emt 0:00:10]} Be6 {[%emt 0:00:23]} 22. Nd3 {[%emt 0:00:30]} Qa5 {[%emt 0:00:34]} 23. Nxe5 {[%emt 0:04:49]} dxe5 {[%emt 0:00:15]} 24. Qd6 {[%emt 0:00:55]} Rae8 {[%emt 0:00:02]} 25. Bf1 {[%emt 0:00:17]} Qc5 {[%emt 0:00:50]} 26. Qd2 {[%emt 0:01:10]} Rd8 {[%emt 0:00:07]} 27. Qe1 {[%emt 0:00:15]} Nb4 {[%emt 0:02:29]} 28. Qh4 {[%emt 0:01:52]} Rg8 {[%emt 0:02:53]} 29. Be2 {[%emt 0:00:20]} Nc2 {[%emt 0:01:16]} 30. Rac1 {[%emt 0:01:24]} Rxg1+ {[%emt 0:01:39]} 31. Rxg1 {[%emt 0:00:03]} Rg8 {[%emt 0:00:02]} 32. Rxg8 {[%emt 0:00:24]} Bxg8 {[%emt 0:00:23]} 33. Qf6 {[%emt 0:00:16]} Nd4 {[%emt 0:00:48]} 34. Qd8 {[%emt 0:01:13]} b5 {[%emt 0:00:47]} 35. Qd7+ 0-1